bitfinex/quotes_BTCUSD_20211001
["timestamp","ask_amount","ask_price","bid_price","bid_amount"]
[1633105823091,0.2117156,47396.0,47395.0,0.2098926]
[1633105823288,0.0169,47396.0,47395.0,0.2098926]
[1633105823692,0.50357683,47396.0,47395.0,0.2098926]
[1633105823890,0.50357683,47396.0,47395.0,0.2048926]
[1633105824292,0.75031027,47396.0,47395.0,0.2048926]
[1633105824491,0.37563344,47396.0,47395.0,0.2048926]
[1633105824696,0.26310651,47395.0,47391.0,0.02]
[1633105824893,0.00126019,47390.0,47388.0,0.126614]
[1633105825195,0.00126019,47390.0,47359.0,0.00122411]
[1633105825196,0.00120009,47380.0,47359.0,0.00122411]
[1633105825392,0.00120009,47380.0,47351.0,0.01]
[1633105825393,0.00128266,47372.0,47351.0,0.01]
[1633105825589,0.00128266,47372.0,47362.0,0.12472826]
[1633105825590,0.10351925,47372.0,47362.0,0.12472826]
[1633105825793,0.0169,47372.0,47366.0,0.00127436]
[1633105825991,0.0169,47372.0,47371.0,0.01124419]
[1633105826391,0.0169,47372.0,47371.0,0.01]
[1633105827792,0.0169,47372.0,47371.0,0.01555674]
[1633105828994,0.12502959,47377.0,47372.0,1.45]
[1633105829194,0.0169,47376.0,47371.0,0.01555674]
[1633105829597,0.01815562,47376.0,47371.0,0.01555674]
[1633105829796,0.19249723,47373.0,47371.0,0.01555674]
[1633105830197,0.19249723,47373.0,47372.0,0.00027743]
[1633105830598,0.52796614,47373.0,47371.0,0.00063767]
[1633105830797,0.65341614,47373.0,47371.0,0.00063767]
[1633105830996,0.0005301,47372.0,47371.0,0.00063767]
[1633105831199,0.10951154,47372.0,47371.0,0.00063767]
[1633105831400,0.21399051,47372.0,47371.0,0.00063767]
[1633105831796,0.21452061,47372.0,47371.0,0.00063767]
[1633105832198,0.53076151,47372.0,47371.0,0.00063767]
[1633105832397,0.21399051,47372.0,47371.0,0.00063767]
[1633105832799,0.21527252,47372.0,47371.0,0.00063767]
[1633105832997,0.62209905,47372.0,47371.0,0.00063767]
[1633105833199,0.31140892,47372.0,47371.0,0.00063767]
[1633105833397,0.31140892,47372.0,47371.0,0.00543753]
[1633105833598,0.21580262,47372.0,47371.0,0.00543753]
[1633105834002,0.21399051,47372.0,47371.0,0.00543753]
[1633105834905,0.21399051,47372.0,47371.0,0.00063767]
[1633105834906,0.20919065,47372.0,47371.0,0.00063767]
[1633105835304,0.21100817,47372.0,47371.0,0.00063767]
[1633105835699,0.21100817,47372.0,47355.0,0.00128956]
[1633105835700,0.26904662,47359.0,47355.0,0.00128956]
[1633105835900,0.0169,47358.0,47355.0,0.00128956]
[1633105836099,0.3645948,47370.0,47355.0,0.00128956]
[1633105836100,0.0169,47357.0,47355.0,0.00128956]
[1633105836303,0.0169,47356.0,47355.0,0.00128956]
[1633105836508,0.0169,47361.0,47359.0,0.00015686]
[1633105836901,0.0169,47361.0,47360.0,0.00014479]
[1633105837099,0.2357674,47361.0,47360.0,0.00014479]
[1633105837499,0.1357674,47361.0,47360.0,0.00014479]
[1633105837700,0.28008698,47361.0,47360.0,0.00014479]
[1633105837900,0.28134007,47361.0,47360.0,0.00014479]
[1633105838101,0.0169,47361.0,47360.0,0.00014479]
[1633105839501,0.18492987,47363.0,47360.0,0.00014479]
[1633105839704,0.0174301,47362.0,47360.0,0.00014479]
[1633105839970,0.29867515,47361.0,47359.0,0.00480227]
[1633105840103,0.29994108,47361.0,47359.0,0.00480227]
[1633105840299,0.29494108,47361.0,47359.0,0.00480227]
[1633105840905,0.00180067,47360.0,47359.0,0.00480227]
[1633105841106,0.01870067,47360.0,47359.0,0.00480227]
[1633105841305,0.5,47374.0,47359.0,0.00480227]
[1633105841306,0.00122938,47366.0,47359.0,0.70495913]
[1633105841504,0.0169,47381.0,47366.0,0.00122478]
[1633105841707,0.0005301,47380.0,47366.0,0.00122478]
[1633105841903,0.0169,47381.0,47369.0,0.11680523]
[1633105841904,0.12095841,47381.0,47369.0,0.11680523]
[1633105842103,0.12095841,47381.0,47370.0,0.27699924]
[1633105842303,0.0169,47381.0,47373.0,0.07594032]
[1633105842505,0.04,47382.0,47380.0,0.00123786]
[1633105842703,0.04,47382.0,47381.0,2.766503]
[1633105842904,0.04,47382.0,47381.0,0.21774]
[1633105843204,0.16509651,47395.0,47382.0,0.11498031]
[1633105843506,0.16509651,47395.0,47394.0,2.4689821]
[1633105843707,0.16509651,47395.0,47394.0,2.6854851]
[1633105843907,0.566365,47415.0,47395.0,0.26310651]
[1633105844108,0.2499,47415.0,47396.0,0.70366125]
[1633105844310,0.2499,47415.0,47404.0,0.00123056]
[1633105844508,0.2499,47415.0,47408.0,0.07419445]
[1633105844509,0.2114254,47414.0,47408.0,0.07419445]
[1633105844705,0.2114254,47414.0,47409.0,0.29595544]
[1633105844907,0.2114254,47414.0,47404.0,0.32637267]
[1633105845104,0.00037368,47405.0,47404.0,0.00123056]
[1633105845708,0.00037368,47405.0,47404.0,0.09807584]
[1633105845906,0.00037368,47405.0,47404.0,0.3768848]
[1633105846103,0.00037368,47405.0,47404.0,0.38168219]
[1633105846907,0.00037368,47405.0,47404.0,0.00602795]
[1633105847402,0.00037368,47405.0,47404.0,0.00479739]
[1633105847605,0.01903983,47405.0,47404.0,0.00479739]
[1633105848204,0.01727368,47405.0,47404.0,0.00479739]
[1633105848604,0.01780378,47405.0,47404.0,0.00479739]
[1633105849210,0.01727368,47405.0,47404.0,0.00479739]
[1633105850205,0.01780378,47405.0,47404.0,0.00479739]
[1633105850605,0.01727368,47405.0,47404.0,0.00479739]
[1633105855109,0.01727368,47405.0,47404.0,2.55605105]
[1633105855110,0.00037368,47405.0,47404.0,2.55605105]
[1633105855309,0.00037368,47405.0,47404.0,2.77255405]
[1633105855507,0.00037368,47405.0,47404.0,2.7738387]
[1633105855710,0.00037368,47405.0,47404.0,0.2238387]
[1633105857708,0.00037368,47405.0,47404.0,0.0073357]
[1633105858012,0.01727368,47405.0,47404.0,0.00479739]
[1633105860312,0.01727368,47405.0,47404.0,0.85879739]
[1633105860509,0.01727368,47405.0,47404.0,0.00879739]
[1633105861812,0.21759646,47423.0,47404.0,0.00879739]
[1633105861813,0.0169,47418.0,47405.0,2.55]
[1633105862009,0.00124384,47428.0,47405.0,2.55]
[1633105862010,0.0169,47424.0,47411.0,0.00122814]
[1633105862412,0.23442015,47412.0,47410.0,0.07770209]
[1633105862607,0.23442015,47412.0,47406.0,0.30670076]
[1633105862810,0.23442015,47412.0,47405.0,2.55]
[1633105862811,7.231e-05,47411.0,47405.0,2.55]
[1633105863007,7.231e-05,47411.0,47406.0,0.216503]
[1633105863609,7.231e-05,47411.0,47406.0,0.49427691]
[1633105863807,7.231e-05,47411.0,47407.0,0.27912561]
[1633105864008,7.231e-05,47411.0,47409.0,0.00125399]
[1633105864407,6.026e-05,47410.0,47409.0,0.00125399]
[1633105864609,6.026e-05,47410.0,47409.0,0.21775699]
[1633105864808,6.026e-05,47410.0,47409.0,0.76775699]
[1633105865011,6.026e-05,47410.0,47409.0,1.05899226]
[1633105865209,2.6e-07,47410.0,47409.0,1.28219226]
[1633105865412,0.210933,47441.0,47409.0,1.28219226]
[1633105865413,0.32478941,47438.0,47411.0,6e-05]
[1633105865609,0.32478941,47438.0,47409.0,2.40341828]
[1633105865610,0.11419297,47436.0,47429.0,0.00129671]
[1633105865818,0.32478941,47438.0,47429.0,0.00129671]
[1633105866011,0.32478941,47438.0,47421.0,0.40552776]
[1633105866012,0.00024096,47430.0,47421.0,0.40552776]
[1633105866212,0.20537308,47424.0,47421.0,0.0741733]
[1633105866414,0.08726922,47429.0,47421.0,0.0741733]
[1633105866613,0.00124124,47434.0,47422.0,0.2878301]
[1633105866814,0.10080231,47429.0,47422.0,0.2878301]
[1633105867010,0.00015664,47423.0,47422.0,0.2878301]
[1633105867213,0.00015664,47423.0,47422.0,0.5043331]
[1633105867414,0.00015664,47423.0,47422.0,0.216503]
[1633105867616,0.00015664,47423.0,47419.0,0.00127401]
[1633105867811,0.15280706,47424.0,47419.0,0.00127401]
[1633105868614,0.07928282,47422.0,47407.0,0.63519954]
[1633105868814,0.17900221,47411.0,47407.0,0.63519954]
[1633105869214,0.0169,47413.0,47410.0,0.00013258]
[1633105869414,0.0169,47413.0,47412.0,1.50582864]
[1633105869614,0.0169,47413.0,47412.0,0.00010847]
[1633105870219,1.6717,47427.0,47412.0,0.21661147]
[1633105870220,0.0169,47419.0,47412.0,0.21661147]
[1633105870412,0.23590043,47416.0,47412.0,0.00139204]
[1633105870814,0.23590043,47416.0,47415.0,7.231e-05]
[1633105871016,0.31618203,47416.0,47415.0,7.231e-05]
[1633105871215,0.23590043,47416.0,47415.0,7.231e-05]
[1633105872416,0.25280043,47416.0,47415.0,7.231e-05]
[1633105872615,0.25280043,47416.0,47415.0,0.00128472]
[1633105872822,0.0169,47416.0,47415.0,0.10128472]
[1633105873882,0.26463332,47416.0,47415.0,0.10128472]
[1633105874479,0.0169,47416.0,47415.0,0.10128472]
[1633105875082,0.0169,47416.0,47415.0,0.10007231]
[1633105875284,0.0169,47416.0,47415.0,0.05007231]
[1633105875487,0.22257326,47416.0,47415.0,0.05007231]
[1633105875685,0.22310336,47416.0,47415.0,0.05007231]
[1633105876087,0.53957536,47416.0,47415.0,0.05007231]
[1633105876488,0.22310336,47416.0,47415.0,0.04992764]
[1633105876889,0.22310336,47416.0,47415.0,0.05472433]
[1633105877489,1.89480336,47416.0,47415.0,0.05472433]
[1633105877694,1.89480336,47416.0,47392.0,0.45057021]
[1633105877695,1.25,47392.0,47386.0,0.11963584]
[1633105877890,1.25,47392.0,47377.0,0.11989596]
[1633105877891,0.5632,47385.0,47377.0,0.11989596]
[1633105878094,0.00123158,47380.0,47370.0,0.12008005]
[1633105878292,0.00125648,47369.0,47368.0,0.12016171]
[1633105878488,0.00125648,47369.0,47367.0,0.69666819]
[1633105878489,0.32123885,47369.0,47367.0,0.69666819]
[1633105878691,0.32123885,47369.0,47368.0,0.2232]
[1633105878692,0.0174301,47369.0,47368.0,0.2232]
[1633105878889,0.0012839,47382.0,47368.0,0.2232]
[1633105878890,2.03926704,47378.0,47369.0,2.55]
[1633105879089,2.03926704,47378.0,47374.0,0.00126883]
[1633105879291,2.03926704,47378.0,47375.0,0.00048246]
[1633105879690,0.27241829,47377.0,47375.0,0.00048246]
[1633105880089,5.971e-05,47376.0,47367.0,0.0809436]
[1633105880288,0.27241829,47377.0,47371.0,0.2232]
[1633105880489,0.27241829,47377.0,47372.0,0.00123461]
[1633105880888,0.27241829,47377.0,47367.0,0.07966819]
[1633105880889,0.27241829,47377.0,47368.0,0.11602634]
[1633105881089,0.0169,47376.0,47367.0,0.07966819]
[1633105881488,0.0169,47376.0,47365.0,0.21238588]
[1633105881888,0.0169,47376.0,47365.0,0.21285627]
[1633105882090,0.22107479,47371.0,47370.0,0.10435522]
[1633105882488,0.0169,47376.0,47370.0,0.10435522]
[1633105882489,0.0169,47376.0,47370.0,0.07442761]
[1633105883090,0.0169,47376.0,47370.0,7.239e-05]
[1633105883293,0.0169,47376.0,47371.0,8.53e-05]
[1633105883590,0.23590242,47375.0,47371.0,8.53e-05]
[1633105883791,0.0169,47374.0,47371.0,8.53e-05]
[1633105885391,0.00126337,47373.0,47371.0,8.53e-05]
[1633105885590,0.0169,47372.0,47371.0,8.53e-05]
[1633105885990,0.0169,47372.0,47371.0,0.00014562]
[1633105888198,0.0150694,47372.0,47371.0,1.55014562]
[1633105888400,0.01090388,47372.0,47371.0,0.00061601]
[1633105888596,0.01090388,47372.0,47371.0,1.77334562]
[1633105888597,0.00485058,47372.0,47371.0,1.77334562]
[1633105888796,0.00485058,47372.0,47371.0,0.22334562]
[1633105888997,0.00485058,47372.0,47371.0,0.34181263]
[1633105890396,0.00485058,47372.0,47371.0,0.55831563]
[1633105891198,0.0169,47380.0,47371.0,0.55831563]
[1633105891398,0.0169,47380.0,47371.0,0.11861263]
[1633105891998,0.0169,47380.0,47375.0,0.2232]
[1633105892201,0.5632,47385.0,47375.0,0.2232]
[1633105892202,0.5632,47385.0,47379.0,0.00124983]
[1633105892400,0.5632,47385.0,47384.0,0.09415397]
[1633105892599,0.5632,47385.0,47384.0,0.00120211]
[1633105892799,0.5632844,47385.0,47384.0,0.00120211]
[1633105892997,0.82924209,47385.0,47384.0,0.00120211]
[1633105893399,0.75448921,47385.0,47384.0,0.00090529]
[1633105893608,1.6717,47387.0,47385.0,0.83551481]
[1633105893802,1.6717,47393.0,47386.0,0.56599418]
[1633105894000,1.6717,47393.0,47392.0,0.00124921]
[1633105894199,1.6717,47393.0,47386.0,0.29636241]
[1633105894399,1.76862532,47393.0,47386.0,0.00121425]
[1633105894601,0.18067444,47392.0,47386.0,0.00121425]
[1633105895002,0.28690719,47391.0,47385.0,0.83551481]
[1633105895199,0.30380719,47391.0,47385.0,0.83551481]
[1633105895400,0.45125233,47386.0,47385.0,0.83551481]
[1633105895604,0.83551481,47385.0,47384.0,0.00022515]
[1633105895804,0.85363024,47385.0,47384.0,0.00022515]
[1633105898203,0.85241481,47385.0,47384.0,0.00022515]
[1633105900804,0.85241481,47385.0,47384.0,0.00502495]
[1633105901511,0.85241481,47385.0,47359.0,0.422277]
[1633105901512,1.95,47383.0,47359.0,0.422277]
[1633105901708,0.19384863,47384.0,47354.0,0.21111736]
[1633105901709,0.00124372,47371.0,47354.0,0.21111736]
[1633105901907,0.0169,47370.0,47355.0,0.10607039]
[1633105902307,0.0169,47370.0,47366.0,0.09404514]
[1633105902510,0.0169,47382.0,47369.0,0.00123286]
[1633105902906,0.0169,47382.0,47370.0,9.649e-05]
[1633105903108,0.2011501,47372.0,47370.0,9.649e-05]
[1633105903310,0.2011501,47372.0,47368.0,0.00122515]
[1633105903510,0.2011501,47372.0,47368.0,0.211091]
[1633105904309,0.36386098,47374.0,47368.0,0.211091]
[1633105904510,0.0005301,47377.0,47368.0,0.211091]
[1633105904709,0.10348331,47378.0,47368.0,0.211091]
[1633105904908,0.0005301,47377.0,47368.0,0.211091]
[1633105905109,0.3172321,47377.0,47364.0,0.00126703]
[1633105905312,0.2041091,47368.0,47364.0,0.00126703]
[1633105905510,0.0005301,47377.0,47366.0,0.2232]
[1633105905511,0.37868877,47377.0,47366.0,0.2232]
[1633105905713,0.37868877,47377.0,47365.0,0.08483119]
[1633105905978,0.0005301,47376.0,47365.0,0.08483119]
[1633105906110,0.0005301,47376.0,47365.0,0.0896324]
[1633105906310,0.3172301,47376.0,47365.0,0.0896324]
[1633105906512,0.24626246,47371.0,47365.0,0.0896324]
[1633105907312,0.211138,47378.0,47365.0,0.0896324]
[1633105907513,0.211138,47378.0,47373.0,0.09145451]
[1633105907712,0.316693,47377.0,47373.0,0.09145451]
[1633105908312,0.23546108,47376.0,47373.0,0.09145451]
[1633105908512,0.23546108,47376.0,47366.0,0.62407708]
[1633105908719,0.23546108,47376.0,47366.0,0.316683]
[1633105908973,0.23546108,47376.0,47367.0,0.04886277]
[1633105909117,0.23546108,47376.0,47365.0,0.00480121]
[1633105909314,0.23546108,47376.0,47366.0,0.04887174]
[1633105909515,0.00123391,47373.0,47366.0,0.07704519]
[1633105909717,0.19900614,47367.0,47366.0,0.07704519]
[1633105909915,0.19900614,47367.0,47365.0,0.00480121]
[1633105910515,0.29484359,47370.0,47365.0,0.00480121]
[1633105910915,0.29484359,47370.0,47367.0,0.09632273]
[1633105911117,0.04015971,47367.0,47365.0,0.00480121]
[1633105911419,0.22041023,47358.0,47351.0,0.0107651]
[1633105911621,0.01834879,47364.0,47352.0,0.04976093]
[1633105911817,0.0005301,47363.0,47362.0,0.00126275]
[1633105912015,0.00144879,47364.0,47362.0,0.00126275]
[1633105912217,0.00144879,47364.0,47362.0,9.652e-05]
[1633105912416,0.00144879,47364.0,47363.0,2.20134195]
[1633105912619,0.00144879,47364.0,47363.0,0.21784495]
[1633105912815,0.00144879,47364.0,47363.0,0.00134195]
[1633105913015,0.00197889,47364.0,47363.0,0.00134195]
[1633105913215,0.00144879,47364.0,47363.0,0.00134195]
[1633105913618,0.20980111,47364.0,47363.0,0.00134195]
[1633105913818,0.20835232,47364.0,47363.0,0.00134195]
[1633105914017,0.20835232,47364.0,47363.0,8.446e-05]
[1633105914417,0.04015971,47367.0,47363.0,0.00135346]
[1633105914817,0.04015971,47367.0,47365.0,6.033e-05]
[1633105916019,0.0005301,47366.0,47362.0,0.08976085]
[1633105916222,0.04015971,47367.0,47362.0,0.08976085]
[1633105916620,0.25132271,47367.0,47362.0,0.08976085]
[1633105916821,0.20368003,47363.0,47358.0,0.00121955]
[1633105917421,0.0005301,47362.0,47358.0,0.00121955]
[1633105917619,0.2117101,47362.0,47358.0,0.00121955]
[1633105917819,0.20368003,47363.0,47358.0,0.00121955]
[1633105918020,0.0005301,47366.0,47361.0,0.09040441]
[1633105918222,0.04015971,47367.0,47361.0,0.09040441]
[1633105919122,0.19536789,47366.0,47362.0,0.316688]
[1633105919424,0.04015971,47367.0,47361.0,0.09040441]
[1633105920422,0.20965496,47364.0,47358.0,0.10999522]
[1633105920621,0.04015971,47367.0,47358.0,0.10999522]
[1633105920821,1.6717,47360.0,47358.0,0.10999522]
[1633105921221,1.6717,47360.0,47359.0,0.70007239]
[1633105921421,1.6717,47366.0,47359.0,7.239e-05]
[1633105921625,0.24707855,47362.0,47359.0,0.08808659]
[1633105922123,1.91877855,47362.0,47359.0,0.08808659]
[1633105922321,1.91877855,47362.0,47359.0,7.239e-05]
[1633105922523,0.29797016,47360.0,47359.0,7.239e-05]
[1633105922723,1.96967016,47360.0,47359.0,7.239e-05]
[1633105923721,1.6717,47360.0,47359.0,7.239e-05]
[1633105925325,1.6722301,47364.0,47359.0,7.239e-05]
[1633105925526,0.24031713,47362.0,47359.0,7.239e-05]
[1633105925725,0.0005301,47361.0,47359.0,7.239e-05]
[1633105926126,0.0005301,47363.0,47360.0,6.032e-05]
[1633105926326,1.6717,47364.0,47360.0,6.032e-05]
[1633105927130,0.18917059,47363.0,47360.0,6.032e-05]
[1633105927329,1.86034049,47363.0,47360.0,6.032e-05]
[1633105927528,1.6717,47363.0,47360.0,6.032e-05]
[1633105927726,0.0005301,47362.0,47361.0,0.00129247]
[1633105928129,1.6722301,47366.0,47361.0,0.00129247]
[1633105928331,0.28619326,47365.0,47360.0,6.032e-05]
[1633105928530,0.51321972,47365.0,47360.0,6.032e-05]
[1633105928729,0.0005301,47364.0,47360.0,6.032e-05]
[1633105928931,1.6722301,47364.0,47360.0,6.032e-05]
[1633105929332,0.0005301,47363.0,47360.0,6.032e-05]
[1633105929531,1.6722301,47363.0,47360.0,6.032e-05]
[1633105930002,0.00129911,47361.0,47360.0,6.032e-05]
[1633105930134,1.68989911,47361.0,47360.0,6.032e-05]
[1633105930533,1.69042921,47361.0,47360.0,6.032e-05]
[1633105931332,1.6891301,47361.0,47360.0,0.12125179]
[1633105931534,1.6717,47361.0,47360.0,0.12248324]
[1633105931733,1.6717,47365.0,47360.0,0.12248324]
[1633105932133,1.6717,47365.0,47360.0,0.00129177]
[1633105932341,0.04015971,47367.0,47360.0,0.00129177]
[1633105932342,0.19557358,47364.0,47360.0,0.00129177]
[1633105932535,1.86727358,47364.0,47360.0,6.032e-05]
[1633105932733,1.86674348,47364.0,47360.0,6.032e-05]
[1633105932932,1.6717,47364.0,47360.0,6.032e-05]
[1633105933138,1.6717,47364.0,47362.0,0.0986627]
[1633105933340,1.6717,47366.0,47360.0,6.032e-05]
[1633105933736,0.0005301,47365.0,47360.0,6.032e-05]
[1633105933937,0.22206683,47362.0,47360.0,6.032e-05]
[1633105934139,1.89376683,47362.0,47360.0,6.032e-05]
[1633105934338,0.0005301,47361.0,47360.0,6.032e-05]
[1633105934538,1.6722301,47361.0,47360.0,6.032e-05]
[1633105936341,1.6717,47361.0,47360.0,6.032e-05]
[1633105936945,1.6722301,47361.0,47360.0,6.032e-05]
[1633105937343,1.7708039,47361.0,47360.0,6.032e-05]
[1633105937544,1.6717,47361.0,47360.0,6.032e-05]
[1633105938144,1.6722301,47364.0,47360.0,6.032e-05]
[1633105939746,1.6717,47364.0,47360.0,6.032e-05]
[1633105940150,1.98847,47364.0,47360.0,6.032e-05]
[1633105940346,0.0005301,47363.0,47360.0,6.032e-05]
[1633105940547,1.98847,47364.0,47360.0,6.032e-05]
[1633105940745,1.6717,47364.0,47360.0,6.032e-05]
[1633105941349,1.6717,47366.0,47360.0,6.032e-05]
[1633105941547,0.0005301,47365.0,47360.0,6.032e-05]
[1633105941745,1.71185971,47367.0,47360.0,6.032e-05]
[1633105942014,1.71185971,47367.0,47362.0,0.00126028]
[1633105942346,1.71185971,47367.0,47360.0,6.032e-05]
[1633105942347,0.11838492,47363.0,47360.0,6.032e-05]
[1633105942546,0.34479661,47362.0,47360.0,6.032e-05]
[1633105942750,0.0005301,47361.0,47360.0,6.032e-05]
[1633105942947,0.23222012,47361.0,47360.0,6.032e-05]
[1633105943147,0.32312599,47361.0,47360.0,6.032e-05]
[1633105943349,1.99482599,47361.0,47360.0,6.032e-05]
[1633105944747,2.31161499,47361.0,47360.0,6.032e-05]
[1633105946050,1.90392012,47361.0,47360.0,6.032e-05]
[1633105947052,1.6722301,47361.0,47360.0,0.09865855]
[1633105947251,1.6717,47361.0,47360.0,0.09865855]
[1633105948652,1.71185971,47367.0,47361.0,0.05291062]
[1633105948851,1.71185971,47367.0,47360.0,2.37476767]
[1633105948852,1.61878938,47361.0,47360.0,2.37476767]
[1633105949052,0.70313773,47361.0,47360.0,2.59127067]
[1633105949452,0.70313773,47361.0,47360.0,2.95238996]
[1633105949653,0.70313773,47361.0,47360.0,3.17558996]
[1633105949852,0.55313773,47361.0,47360.0,1.64782299]
[1633105950054,0.55313773,47361.0,47360.0,2.96221196]
[1633105950456,0.25313773,47361.0,47360.0,1.49221196]
[1633105950852,0.04015971,47367.0,47361.0,1.13143773]
[1633105951117,0.04015971,47367.0,47366.0,0.31910611]
[1633105951312,0.04015971,47367.0,47366.0,0.53560911]
[1633105951912,0.04015971,47367.0,47366.0,0.60445366]
[1633105952313,0.04015971,47367.0,47366.0,0.82765366]
[1633105952516,1.71185971,47367.0,47366.0,1.09083926]
[1633105953117,1.71185971,47367.0,47366.0,0.82765366]
[1633105954719,0.50585971,47367.0,47366.0,3.37765366]
[1633105954917,0.4657,47367.0,47366.0,1.94765366]
[1633105955321,0.4657,47367.0,47366.0,1.94386594]
[1633105955918,0.83557512,47385.0,47367.0,2.55]
[1633105956119,1.33457512,47385.0,47382.0,0.00122337]
[1633105956318,0.0005301,47384.0,47382.0,0.00064171]
[1633105956519,1.33457512,47385.0,47382.0,0.00129267]
[1633105956520,0.00019296,47383.0,47382.0,0.00129267]
[1633105956720,0.49972306,47383.0,47382.0,0.00129267]
[1633105957919,0.49919296,47383.0,47382.0,0.00129267]
[1633105958518,0.49919296,47383.0,47382.0,0.27212224]
[1633105958720,0.49919296,47383.0,47382.0,0.00129267]
[1633105958920,0.49972306,47383.0,47382.0,0.00129267]
[1633105959325,0.49919296,47383.0,47382.0,0.00129267]
[1633105965123,0.49919296,47383.0,47379.0,0.21104]
[1633105965523,0.00015679,47380.0,47379.0,0.21104]
[1633105965924,0.00015679,47380.0,47379.0,0.21226961]
[1633105966137,0.00015679,47380.0,47379.0,0.52884761]
[1633105966333,0.00015679,47380.0,47379.0,0.74535061]
[1633105967538,0.00015679,47380.0,47379.0,0.52884761]
[1633105968140,0.49239257,47383.0,47380.0,2.766503]
[1633105968342,0.4924,47384.0,47383.0,2.95726612]
[1633105968540,0.40752712,47394.0,47385.0,1.2637635]
[1633105968742,0.0005301,47411.0,47394.0,0.17107454]
[1633105968941,0.12313394,47418.0,47406.0,0.00123333]
[1633105968942,0.0005301,47412.0,47406.0,0.00123333]
[1633105969141,0.21104,47423.0,47406.0,0.00123333]
[1633105969142,0.0005301,47417.0,47411.0,0.07892889]
[1633105969341,0.0005301,47424.0,47416.0,0.00122198]
[1633105969539,0.20052,47425.0,47420.0,0.00125655]
[1633105969741,0.19052,47425.0,47420.0,0.00125655]
[1633105969940,0.19052,47425.0,47424.0,0.00129562]
[1633105970145,2e-05,47425.0,47424.0,3.03256783]
[1633105970341,2e-05,47425.0,47424.0,0.70576783]
[1633105970342,0.00054222,47425.0,47424.0,0.70576783]
[1633105970541,0.00054222,47425.0,47424.0,0.82281036]
[1633105970739,0.00054222,47425.0,47424.0,1.94281036]
[1633105971138,0.00054222,47425.0,47424.0,2.36951894]
[1633105971342,0.00054222,47425.0,47424.0,0.90927641]
[1633105971938,0.00054222,47425.0,47424.0,0.79881483]
[1633105972143,0.00054222,47425.0,47424.0,0.00129562]
[1633105972340,0.00054222,47425.0,47415.0,0.03]
[1633105972341,0.00175008,47425.0,47415.0,0.03]
[1633105972540,0.23570727,47416.0,47415.0,0.03]
[1633105972742,0.00043386,47416.0,47415.0,0.03]
[1633105972942,0.10464479,47416.0,47415.0,0.216503]
[1633105973139,0.10464479,47416.0,47413.0,0.20388687]
[1633105973338,0.10464479,47416.0,47414.0,0.211503]
[1633105973339,0.00043386,47416.0,47414.0,0.211503]
[1633105973543,0.0005301,47427.0,47414.0,0.211503]
[1633105973739,0.0005301,47427.0,47413.0,0.09828687]
[1633105973740,0.23362608,47421.0,47413.0,0.09828687]
[1633105973943,0.23362608,47421.0,47414.0,0.21757]
[1633105974139,0.0005301,47427.0,47414.0,0.21757]
[1633105974346,0.10059867,47420.0,47414.0,0.19578183]
[1633105974543,0.10059867,47420.0,47414.0,0.40664799]
[1633105974941,0.0005301,47419.0,47414.0,0.40664799]
[1633105975139,0.10059867,47420.0,47414.0,0.40664799]
[1633105975343,0.23022087,47418.0,47414.0,0.40664799]
[1633105976740,0.23011539,47418.0,47414.0,0.40664799]
[1633105976939,0.10059867,47420.0,47414.0,0.40664799]
[1633105978343,0.0005301,47419.0,47414.0,0.21086616]
[1633105978742,0.10059867,47420.0,47414.0,0.21086616]
[1633105979146,0.0005301,47419.0,47415.0,0.217585]
[1633105979345,0.0005301,47419.0,47418.0,0.08214354]
[1633105979544,0.10059867,47420.0,47418.0,0.217585]
[1633105979943,0.10059867,47420.0,47414.0,0.52719116]
[1633105980143,0.0005301,47419.0,47415.0,0.217585]
[1633105980943,0.0005301,47419.0,47415.0,0.212585]
[1633105981346,0.0005301,47419.0,47414.0,0.52719116]
[1633105981546,0.0005301,47419.0,47402.0,1.12]
[1633105981547,0.00129998,47418.0,47402.0,1.12]
[1633105981750,0.00129998,47418.0,47409.0,0.217585]
[1633105981751,0.20178567,47411.0,47409.0,0.217585]
[1633105981945,0.00042182,47415.0,47409.0,0.217585]
[1633105982147,0.35195069,47426.0,47410.0,0.00125329]
[1633105982546,0.35195069,47426.0,47406.0,0.2701125]
[1633105982547,0.00120668,47420.0,47413.0,0.08193223]
[1633105982751,0.0005301,47425.0,47413.0,0.29282074]
[1633105982947,0.17634587,47417.0,47413.0,0.29282074]
[1633105983146,0.17634587,47417.0,47414.0,0.217585]
[1633105983550,0.00042182,47415.0,47414.0,0.217585]
[1633105984148,0.00042182,47415.0,47410.0,0.0012442]
[1633105984353,0.00042182,47415.0,47407.0,0.421791]
[1633105984548,0.00037364,47411.0,47409.0,0.217585]
[1633105984749,0.17634587,47417.0,47409.0,0.217585]
[1633105984950,0.00121704,47415.0,47407.0,0.421791]
[1633105985154,0.07601981,47412.0,47403.0,0.07912755]
[1633105985351,0.00034955,47409.0,47405.0,0.1056]
[1633105985551,0.24340158,47408.0,47405.0,0.1056]
[1633105985953,0.07601981,47412.0,47405.0,0.1056]
[1633105986156,0.10135435,47418.0,47405.0,0.1056]
[1633105986157,0.0005301,47420.0,47411.0,0.00123863]
[1633105986356,0.00126494,47428.0,47411.0,0.00123863]
[1633105986357,0.0005301,47422.0,47411.0,0.00123863]
[1633105986553,0.00038568,47412.0,47411.0,0.00123863]
[1633105986753,0.00038568,47412.0,47411.0,0.21882363]
[1633105987021,0.25018754,47412.0,47411.0,0.21882363]
[1633105987153,0.25018754,47412.0,47408.0,0.21090561]
[1633105987553,0.0005301,47422.0,47413.0,0.316332]
[1633105987954,0.00040977,47414.0,47413.0,0.316332]
[1633105988554,0.19903966,47414.0,47413.0,0.39520208]
[1633105989155,0.19903966,47414.0,47413.0,0.316332]
[1633105990957,0.20032167,47414.0,47405.0,0.1056]
[1633105991155,0.20032167,47414.0,47400.0,0.00127264]
[1633105991156,0.00129463,47406.0,47400.0,0.00127264]
[1633105991357,0.18786623,47399.0,47398.0,0.1056]
[1633105991555,0.00129019,47401.0,47398.0,0.1056]
[1633105991556,0.00154335,47401.0,47398.0,0.1056]
[1633105991755,0.00022906,47399.0,47398.0,0.1056]
[1633105992162,0.00022906,47399.0,47397.0,0.20034]
[1633105992362,0.0005301,47398.0,47397.0,0.20034]
[1633105992554,0.24559008,47398.0,47397.0,0.20034]
[1633105992955,0.23559008,47398.0,47397.0,0.20034]
[1633105993156,0.23559008,47398.0,47394.0,0.1816279]
[1633105993357,0.70128191,47395.0,47394.0,0.1816279]
[1633105993560,0.70128191,47395.0,47385.0,0.83551481]
[1633105993561,0.00127774,47389.0,47385.0,0.83551481]
[1633105993758,0.20938674,47386.0,47385.0,0.83551481]
[1633105993958,0.52410143,47386.0,47385.0,0.83551481]
[1633105994157,0.22752913,47386.0,47385.0,0.83551481]
[1633105994359,0.71978173,47386.0,47385.0,0.83551481]
[1633105994558,1.03034634,47386.0,47385.0,0.83551481]
[1633105994761,1.34992747,47386.0,47385.0,0.83551481]
[1633105995162,1.06447334,47386.0,47385.0,0.83551481]
[1633105996357,1.06447334,47386.0,47385.0,0.77428836]